{"text_format":"3","workbook":"xlsx","n_sheets":1,"sheets":["Paskolos skaičiuotuvas"],"not_rendered":{"defined_names":10},"read":"whole","date_system":"1900"}

{"sheet":"Paskolos skaičiuotuvas","index":0,"n_rows":22,"n_cols":13,"rows_kept":22,"merged":[[1,1,1,3],[1,6,2,8],[1,11,2,12],[2,1,2,3],[6,5,6,6],[7,5,7,6],[10,2,10,5],[10,6,10,8],[10,9,10,12],[18,2,18,12]]}
[]
[null,"KOLEGIJOS PASKOLA ",{"$nulls":4},{"v":50000,"d":"50,000 Lt"},{"$nulls":4},"2011-05-10"]
[null,"SKAIČIUOTUVAS "]
[]
[null," Rekomenduojama, kad jūsų bendra grąžinama studento paskolos suma neviršytų 8 % jūsų pirmojo metinio atlyginimo."]
[]
[null,null,"Jūsų kombinuotas dabartinis mėnesinis mokėjimas yra:",null,null,{"$f":"KolegijosPaskolos[[#Totals],[Dabartinis mėnesinis mokėjimas]]","v":{"v":328.58590726058833,"d":"328.59 Lt"}},null,null,"Jūsų kombinuotas planinis mėnesinis mokėjimas yra:",{"$nulls":3},{"$f":"KolegijosPaskolos[[#Totals],[Planinis mokėjimas]]","v":{"v":328.58590726058833,"d":"328.59 Lt"}}]
[null,null,"Mėnesio pajamų procentas:",null,null,{"$f":"KolegijosPaskolos[[#Totals],[Dabartinis mėnesinis mokėjimas]]/NumatomasMėnesinisAtlyginimas","v":{"v":0.07886061774254119,"d":"7.89%"}},null,null,"  Mėnesio pajamų procentas:",{"$nulls":3},{"$f":"KolegijosPaskolos[[#Totals],[Planinis mokėjimas]]/NumatomasMėnesinisAtlyginimas","v":{"v":0.07886061774254119,"d":"7.89%"}}]
[]
[]
[null,null,"BENDROJI PASKOLOS INFORMACIJA",{"$nulls":3},"PASKOLOS GRĄŽINIMO DUOMENYS",null,null,"MOKĖJIMO INFORMACIJA"]
[null,null,"Paskolos Nr.","Skolintojas","Paskolos suma","Metinė palūkanų norma","Pradžios data","Trukmė (metais)","Pabaigos data","Dabartinis mėnesinis mokėjimas","Bendros palūkanos","Planinis mokėjimas","Metinė įmoka"]
[null,null,"10998M88","1 skolintojas",{"v":10000,"d":"10,000.00 Lt"},{"v":0.05,"d":"5.00%"},"2011-04-01",10,{"$f":"IF(AND(KolegijosPaskolos[[#This Row],[Pradžios data]]>0,KolegijosPaskolos[[#This Row],[Trukmė (metais)]]>0),EDATE(KolegijosPaskolos[[#This Row],[Pradžios data]],KolegijosPaskolos[[#This Row],[Trukmė (metais)]]*12),\"\")","v":"2021-04-01"},{"$f":"IF(AND(PaskolosPradžiaLŠiandien,COUNT(KolegijosPaskolos[[#This Row],[Paskolos suma]:[Trukmė (metais)]])=4,KolegijosPaskolos[[#This Row],[Pradžios data]]<TODAY()),PMT(KolegijosPaskolos[[#This Row],[Metinė palūkanų norma]]/12,KolegijosPaskolos[[#This Row],[Trukmė (metais)]]*12,-KolegijosPaskolos[[#This Row],[Paskolos suma]],0,0),\"\")","v":{"v":106.06551523907524,"d":"106.07 Lt"}},{"$f":"IFERROR((KolegijosPaskolos[[#This Row],[Planinis mokėjimas]]*(KolegijosPaskolos[[#This Row],[Trukmė (metais)]]*12))-KolegijosPaskolos[[#This Row],[Paskolos suma]],\"\")","v":{"v":2727.8618286890287,"d":"2,727.86 Lt"}},{"$f":"IF(COUNTA(KolegijosPaskolos[[#This Row],[Paskolos suma]:[Trukmė (metais)]])<>4,\"\",PMT(KolegijosPaskolos[[#This Row],[Metinė palūkanų norma]]/12,KolegijosPaskolos[[#This Row],[Trukmė (metais)]]*12,-KolegijosPaskolos[[#This Row],[Paskolos suma]],0,0))","v":{"v":106.06551523907524,"d":"106.07 Lt"}},{"$f":"IFERROR(KolegijosPaskolos[[#This Row],[Planinis mokėjimas]]*12,\"\")","v":{"v":1272.7861828689029,"d":"1,272.79 Lt"}}]
[null,null,"20987N87","2 skolintojas",{"v":8000,"d":"8,000.00 Lt"},{"v":0.05,"d":"5.00%"},"2011-05-01",10,{"$f":"IF(AND(KolegijosPaskolos[[#This Row],[Pradžios data]]>0,KolegijosPaskolos[[#This Row],[Trukmė (metais)]]>0),EDATE(KolegijosPaskolos[[#This Row],[Pradžios data]],KolegijosPaskolos[[#This Row],[Trukmė (metais)]]*12),\"\")","v":"2021-05-01"},{"$f":"IF(AND(PaskolosPradžiaLŠiandien,COUNT(KolegijosPaskolos[[#This Row],[Paskolos suma]:[Trukmė (metais)]])=4,KolegijosPaskolos[[#This Row],[Pradžios data]]<TODAY()),PMT(KolegijosPaskolos[[#This Row],[Metinė palūkanų norma]]/12,KolegijosPaskolos[[#This Row],[Trukmė (metais)]]*12,-KolegijosPaskolos[[#This Row],[Paskolos suma]],0,0),\"\")","v":{"v":84.85241219126019,"d":"84.85 Lt"}},{"$f":"IFERROR((KolegijosPaskolos[[#This Row],[Planinis mokėjimas]]*(KolegijosPaskolos[[#This Row],[Trukmė (metais)]]*12))-KolegijosPaskolos[[#This Row],[Paskolos suma]],\"\")","v":{"v":2182.289462951223,"d":"2,182.29 Lt"}},{"$f":"IF(COUNTA(KolegijosPaskolos[[#This Row],[Paskolos suma]:[Trukmė (metais)]])<>4,\"\",PMT(KolegijosPaskolos[[#This Row],[Metinė palūkanų norma]]/12,KolegijosPaskolos[[#This Row],[Trukmė (metais)]]*12,-KolegijosPaskolos[[#This Row],[Paskolos suma]],0,0))","v":{"v":84.85241219126019,"d":"84.85 Lt"}},{"$f":"IFERROR(KolegijosPaskolos[[#This Row],[Planinis mokėjimas]]*12,\"\")","v":{"v":1018.2289462951222,"d":"1,018.23 Lt"}}]
[null,null,"36785LM","3 skolintojas",{"v":6000,"d":"6,000.00 Lt"},{"v":0.045,"d":"4.50%"},"2012-03-01",10,{"$f":"IF(AND(KolegijosPaskolos[[#This Row],[Pradžios data]]>0,KolegijosPaskolos[[#This Row],[Trukmė (metais)]]>0),EDATE(KolegijosPaskolos[[#This Row],[Pradžios data]],KolegijosPaskolos[[#This Row],[Trukmė (metais)]]*12),\"\")","v":"2022-03-01"},{"$f":"IF(AND(PaskolosPradžiaLŠiandien,COUNT(KolegijosPaskolos[[#This Row],[Paskolos suma]:[Trukmė (metais)]])=4,KolegijosPaskolos[[#This Row],[Pradžios data]]<TODAY()),PMT(KolegijosPaskolos[[#This Row],[Metinė palūkanų norma]]/12,KolegijosPaskolos[[#This Row],[Trukmė (metais)]]*12,-KolegijosPaskolos[[#This Row],[Paskolos suma]],0,0),\"\")","v":{"v":62.18304525420918,"d":"62.18 Lt"}},{"$f":"IFERROR((KolegijosPaskolos[[#This Row],[Planinis mokėjimas]]*(KolegijosPaskolos[[#This Row],[Trukmė (metais)]]*12))-KolegijosPaskolos[[#This Row],[Paskolos suma]],\"\")","v":{"v":1461.9654305051017,"d":"1,461.97 Lt"}},{"$f":"IF(COUNTA(KolegijosPaskolos[[#This Row],[Paskolos suma]:[Trukmė (metais)]])<>4,\"\",PMT(KolegijosPaskolos[[#This Row],[Metinė palūkanų norma]]/12,KolegijosPaskolos[[#This Row],[Trukmė (metais)]]*12,-KolegijosPaskolos[[#This Row],[Paskolos suma]],0,0))","v":{"v":62.18304525420918,"d":"62.18 Lt"}},{"$f":"IFERROR(KolegijosPaskolos[[#This Row],[Planinis mokėjimas]]*12,\"\")","v":{"v":746.1965430505102,"d":"746.20 Lt"}}]
[null,null,"765R43","4 skolintojas",{"v":4000,"d":"4,000.00 Lt"},{"v":0.05,"d":"5.00%"},"2012-05-01",5,{"$f":"IF(AND(KolegijosPaskolos[[#This Row],[Pradžios data]]>0,KolegijosPaskolos[[#This Row],[Trukmė (metais)]]>0),EDATE(KolegijosPaskolos[[#This Row],[Pradžios data]],KolegijosPaskolos[[#This Row],[Trukmė (metais)]]*12),\"\")","v":"2017-05-01"},{"$f":"IF(AND(PaskolosPradžiaLŠiandien,COUNT(KolegijosPaskolos[[#This Row],[Paskolos suma]:[Trukmė (metais)]])=4,KolegijosPaskolos[[#This Row],[Pradžios data]]<TODAY()),PMT(KolegijosPaskolos[[#This Row],[Metinė palūkanų norma]]/12,KolegijosPaskolos[[#This Row],[Trukmė (metais)]]*12,-KolegijosPaskolos[[#This Row],[Paskolos suma]],0,0),\"\")","v":{"v":75.48493457604374,"d":"75.48 Lt"}},{"$f":"IFERROR((KolegijosPaskolos[[#This Row],[Planinis mokėjimas]]*(KolegijosPaskolos[[#This Row],[Trukmė (metais)]]*12))-KolegijosPaskolos[[#This Row],[Paskolos suma]],\"\")","v":{"v":529.0960745626244,"d":"529.10 Lt"}},{"$f":"IF(COUNTA(KolegijosPaskolos[[#This Row],[Paskolos suma]:[Trukmė (metais)]])<>4,\"\",PMT(KolegijosPaskolos[[#This Row],[Metinė palūkanų norma]]/12,KolegijosPaskolos[[#This Row],[Trukmė (metais)]]*12,-KolegijosPaskolos[[#This Row],[Paskolos suma]],0,0))","v":{"v":75.48493457604374,"d":"75.48 Lt"}},{"$f":"IFERROR(KolegijosPaskolos[[#This Row],[Planinis mokėjimas]]*12,\"\")","v":{"v":905.8192149125249,"d":"905.82 Lt"}}]
[null,null,"Sumos",null,{"$f":"SUBTOTAL(109,KolegijosPaskolos[Paskolos suma])","v":{"v":28000,"d":"28,000.00 Lt"}},{"$nulls":4},{"$f":"SUBTOTAL(109,KolegijosPaskolos[Dabartinis mėnesinis mokėjimas])","v":{"v":328.58590726058833,"d":"328.59 Lt"}},{"$f":"SUBTOTAL(109,KolegijosPaskolos[Bendros palūkanos])","v":{"v":6901.212796707978,"d":"6,901.21 Lt"}},{"$f":"SUBTOTAL(109,KolegijosPaskolos[Planinis mokėjimas])","v":{"v":328.58590726058833,"d":"328.59 Lt"}},{"$f":"SUBTOTAL(109,KolegijosPaskolos[Metinė įmoka])","v":{"v":3943.03088712706,"d":"3,943.03 Lt"}}]
[null,null,"Vidurkiai",null,{"$f":"AVERAGE(KolegijosPaskolos[Paskolos suma])","v":{"v":7000,"d":"7,000.00 Lt"}},{"$f":"AVERAGE(KolegijosPaskolos[Metinė palūkanų norma])","v":{"v":0.04875,"d":"4.88%"}},{"$nulls":4},{"$f":"AVERAGE(KolegijosPaskolos[Bendros palūkanos])","v":{"v":1725.3031991769944,"d":"1,725.30 Lt"}},null,{"$f":"AVERAGE(KolegijosPaskolos[Metinė įmoka])","v":{"v":985.757721781765,"d":"985.76 Lt"}}]
[]
[{"$nulls":10},"Bendras konsoliduotas paskolos grąžinimas:",null,{"$f":"KolegijosPaskolos[[#Totals],[Paskolos suma]]+KolegijosPaskolos[[#Totals],[Bendros palūkanos]]","v":{"v":34901.21279670798,"d":"34,901.21 Lt"}}]
[]
[{"$nulls":10},"Numatomos mėnesio pajamos po baigimo:",null,{"$f":"(NumatomasMetinisAtlyginimas/12)","v":{"v":4166.666666666667,"d":"4,166.67 Lt"}}]